bitfinex/quotes_ETHUSD_20250326
["timestamp","ask_amount","ask_price","bid_price","bid_amount"]
[1743013786931,0.56189056,2014.9,2014.6,4.96361]
[1743013787131,5.16094,2014.9,2014.5,5.74389]
[1743013787326,5.16094,2014.9,2014.6,4.96375]
[1743013788865,1e-05,2014.9,2014.6,9.92738]
[1743013789036,1e-05,2014.9,2014.6,4.96363]
[1743013789827,4.96313,2014.9,2014.6,4.96363]
[1743013792076,1e-05,2014.9,2014.6,4.96363]
[1743013792266,1e-05,2014.9,2014.7,4.9635]
[1743013793342,1e-05,2014.9,2014.7,4.96342]
[1743013793535,1e-05,2014.9,2014.8,5.77997]
[1743013794867,1e-05,2014.9,2014.8,5.82959909]
[1743013795035,1e-05,2014.9,2014.8,20.27997]
[1743013795235,1e-05,2014.9,2014.8,23.92206276]
[1743013798975,1e-05,2014.9,2014.8,9.42206276]
[1743013799385,1e-05,2014.9,2014.8,23.92206276]
[1743013799943,1e-05,2014.9,2014.8,9.42206276]
[1743013800472,0.19781,2014.9,2014.6,6.988073]
[1743013800687,0.19781,2014.9,2014.5,11.08387]
[1743013800688,10.12418,2014.9,2014.5,11.08387]
[1743013800977,4.96364,2014.7,2014.4,1.00674344]
[1743013801186,4.96334,2014.8,2014.4,4.96422]
[1743013801389,1e-05,2014.9,2014.7,4.96347]
[1743013802299,1e-05,2014.9,2014.6,4.96374]
[1743013802593,1e-05,2014.9,2014.7,4.96349]
[1743013802769,1e-05,2014.9,2014.6,7.90139546]
[1743013803093,1e-05,2014.9,2014.6,12.86501546]
[1743013803396,1e-05,2014.9,2014.6,7.90128546]
[1743013803586,1e-05,2014.9,2014.6,12.86494546]
[1743013803966,1e-05,2014.9,2014.7,6.15732296]
[1743013804493,1e-05,2014.9,2014.7,6.15723296]
[1743013805490,1e-05,2014.9,2014.6,4.96368]
[1743013805696,4.96312,2014.9,2014.6,4.96368]
[1743013805891,9.92635,2014.9,2014.5,19.46387]
[1743013806094,4.9633,2014.8,2014.5,14.5]
[1743013806307,4.96353,2014.7,2014.4,4.96421]
[1743013806466,10.12501,2014.7,2014.4,1.071008]
[1743013806666,5.16133,2014.7,2014.4,1.071008]
[1743013806903,10.12503,2014.7,2014.4,1.071008]
[1743013807194,5.16133,2014.7,2014.3,20.24579]
[1743013807582,4.96384,2014.6,2014.3,14.5]
[1743013808192,4.96384,2014.6,2014.3,19.46446]
[1743013808381,5.16133,2014.7,2014.3,19.46434]
[1743013808587,0.1978,2014.7,2014.5,4.964]
[1743013808789,5.16092,2014.9,2014.5,9.92786]
[1743013808974,1e-05,2014.9,2014.6,4.96356]
[1743013809170,1e-05,2014.9,2014.7,4.96337]
[1743013809365,1e-05,2014.9,2014.8,4.96327]
[1743013810284,1e-05,2014.9,2014.6,4.96374]
[1743013810492,5.16123,2014.8,2014.4,4.96425]
[1743013810796,4.96372,2014.7,2014.3,19.46438]
[1743013811100,9.92743,2014.7,2014.3,19.46438]
[1743013811304,4.96378,2014.6,2014.3,19.46438]
[1743013811599,4.96371,2014.7,2014.3,24.4287]
[1743013811798,9.92746,2014.7,2014.3,19.46432]
[1743013812116,9.92746,2014.7,2014.3,19.96142]
[1743013812402,0.1978,2014.5,2014.3,14.9971]
[1743013812784,0.1978,2014.5,2014.3,0.4971]
[1743013813078,5.16182,2014.5,2014.3,0.4971]
[1743013813275,0.1978,2014.5,2014.3,0.4971]
[1743013814089,5.16194,2014.5,2014.3,0.4971]
[1743013814289,4.96425,2014.4,2014.3,0.4971]
[1743013814998,0.1978,2014.5,2014.3,0.4971]
[1743013815369,10.12505,2014.7,2014.3,5.46149]
[1743013816105,5.16132,2014.7,2014.3,5.46149]
[1743013816612,4.96376,2014.6,2014.3,5.46149]
[1743013816800,4.96376,2014.6,2014.3,0.4971]
[1743013817409,4.96376,2014.6,2014.3,5.46158]
[1743013817585,4.96425,2014.4,2014.3,0.4971]
[1743013817782,14.1178346,2014.5,2014.3,0.4971]
[1743013819512,4.96425,2014.4,2014.3,0.4971]
[1743013819715,0.1978,2014.4,2014.3,0.4971]
[1743013821116,0.1978,2014.4,2014.3,14.9971]
[1743013822315,5.16205,2014.4,2014.3,14.9971]
[1743013823631,0.1978,2014.4,2014.3,14.9971]
[1743013824208,0.1978,2014.4,2014.3,0.4971]
[1743013824713,9.1535446,2014.5,2014.3,14.9971]
[1743013825518,6.6296497,2014.6,2014.3,14.9971]
[1743013825888,0.56318241,2014.8,2014.5,4.96387]
[1743013826088,1e-05,2014.9,2014.8,4.96327]
[1743013826723,1e-05,2014.9,2014.7,4.96333]
[1743013826922,1e-05,2014.9,2014.7,9.9267]
[1743013827135,1e-05,2014.9,2014.7,11.41880346]
[1743013827323,1e-05,2014.9,2014.7,1.49210346]
[1743013827523,1e-05,2014.9,2014.6,5.76854]
[1743013827739,1e-05,2014.9,2014.7,4.96337]
[1743013828134,1e-05,2014.9,2014.6,5.76854]
[1743013828331,1e-05,2014.9,2014.7,4.96351]
[1743013828531,1e-05,2014.9,2014.6,5.76854]
[1743013828843,1e-05,2014.9,2014.7,4.96342]
[1743013830349,1e-05,2014.9,2014.6,6.841794]
[1743013830522,1e-05,2014.9,2014.6,6.841754]
[1743013830721,4.96305,2014.9,2014.6,1.073254]
[1743013830950,9.1528846,2014.8,2014.4,4.96418]
[1743013831350,4.96356,2014.7,2014.4,4.96418]
[1743013831853,9.92729,2014.7,2014.3,5.46156]
[1743013832552,4.96356,2014.7,2014.3,5.46156]
[1743013833023,9.92724,2014.7,2014.3,5.46156]
[1743013833226,4.96356,2014.7,2014.3,5.46156]
[1743013833522,4.96356,2014.7,2014.3,5.46145]
[1743013833859,4.96356,2014.7,2014.3,10.42582]
[1743013834058,9.92726,2014.7,2014.3,5.46145]
[1743013834220,4.96356,2014.7,2014.3,5.46145]
[1743013834420,4.9638,2014.6,2014.3,5.46145]
[1743013835156,4.9638,2014.6,2014.3,6.43158403]
[1743013835723,4.96403,2014.5,2014.3,1.46723403]
[1743013835932,4.96403,2014.5,2014.3,0.4971]
[1743013839367,5.34307604,2014.8,2014.3,0.4971]
[1743013839563,1e-05,2014.9,2014.7,9.9328446]
[1743013839859,1e-05,2014.9,2014.8,4.96327]
[1743013840771,1e-05,2014.9,2014.7,5.74341]
[1743013840940,1e-05,2014.9,2014.7,4.96341]
[1743013841144,1e-05,2014.9,2014.6,4.96368]
[1743013841338,1e-05,2014.9,2014.7,4.96346]
[1743013841648,1e-05,2014.9,2014.8,4.96327]
[1743013842660,1e-05,2014.9,2014.8,6.83626813]
[1743013843553,1e-05,2014.9,2014.8,12.111637]
[1743013844562,1e-05,2014.9,2014.8,26.611637]
[1743013845452,1e-05,2014.9,2014.8,35.731637]
[1743013847671,3.1978,2016.0,2015.7,4.96091]
[1743013847834,3.1978,2016.0,2015.7,9.92177]
[1743013848262,3.1978,2016.0,2015.7,4.96086]
[1743013848449,0.1978,2016.0,2015.8,4.9607]
[1743013848657,3.0,2016.1,2015.8,4.9607]
[1743013848880,3.0,2016.1,2015.9,4.96051]
[1743013849238,0.1978,2016.2,2015.9,4.96032]
[1743013849441,0.1978,2016.2,2016.0,4.96026]
[1743013850038,8.0786648,2016.3,2016.2,4.95982]
[1743013850039,0.1190748,2016.3,2016.2,4.95982]
[1743013852165,0.1190748,2016.3,2016.1,4.96007]
[1743013852970,0.1190748,2016.3,2016.2,14.5]
[1743013853660,0.1190748,2016.3,2015.9,5.77212]
[1743013853845,5.0787948,2016.3,2015.9,10.73253]
[1743013854044,5.0787948,2016.3,2015.9,12.70202646]
[1743013854346,5.0787948,2016.3,2015.9,7.74150646]
[1743013855091,5.0787948,2016.3,2015.9,12.70188646]
[1743013855242,0.1978,2016.2,2015.9,6.92987646]
[1743013855769,5.15763,2016.2,2015.9,6.92987646]
[1743013856075,0.1978,2016.2,2015.9,6.92987646]
[1743013856914,0.1190748,2016.3,2016.1,9.1494146]
[1743013857209,0.1190748,2016.3,2016.2,4.95982]
[1743013858014,0.1190748,2016.3,2016.1,4.95998]
[1743013858307,0.1190748,2016.3,2016.0,6.96616665]
[1743013858609,0.1190748,2016.3,2016.1,6.53306814]
[1743013859105,0.1190748,2016.3,2016.1,11.49299814]
[1743013860106,0.1190748,2016.3,2016.1,6.53296814]
[1743013860287,0.1190748,2016.3,2016.0,4.96024]
[1743013860610,0.3168748,2016.3,2015.9,6.92989646]
[1743013860776,5.2765348,2016.3,2015.9,6.92989646]
[1743013861167,0.3168748,2016.3,2015.9,2.73589646]
[1743013861395,0.3168748,2016.3,2016.0,4.96013]
[1743013862287,5.2766048,2016.3,2015.9,6.93004646]
[1743013862600,5.2766048,2016.3,2015.9,4.96041]
[1743013862764,5.2766048,2016.3,2016.0,4.96029]
[1743013863188,0.1190748,2016.3,2016.1,4.95999]
[1743013863363,0.1190748,2016.3,2016.0,4.96024]
[1743013863794,5.0787048,2016.3,2016.0,4.96024]
[1743013864088,0.1190748,2016.3,2016.0,9.92045]
[1743013864289,0.1190748,2016.3,2016.1,4.96004]
[1743013864483,0.1190748,2016.3,2016.0,4.96021]
[1743013864680,5.0786648,2016.3,2016.0,4.96021]
[1743013865198,4.95993,2016.2,2015.9,4.96044]
[1743013865495,0.1978,2016.1,2015.8,9.92144]
[1743013865991,4.95993,2016.2,2015.9,4.96054]
[1743013866196,5.2764548,2016.3,2016.0,4.96031]
[1743013866399,5.2764548,2016.3,2015.9,4.96039]
[1743013866991,5.2764548,2016.3,2015.9,9.92078]
[1743013867368,5.2764548,2016.3,2016.0,4.96027]
[1743013871399,0.3168748,2016.3,2016.0,4.96017]
[1743013871967,5.2764648,2016.3,2016.0,4.96017]
[1743013872398,0.3168748,2016.3,2016.0,4.96012]
[1743013872603,0.1190748,2016.3,2016.2,4.95982]
[1743013873304,0.1190748,2016.3,2016.2,10.53131017]
[1743013873615,0.1190748,2016.3,2016.2,10.48172]
[1743013873783,0.1190748,2016.3,2016.2,24.98172]
[1743013873984,0.1190748,2016.3,2016.2,29.08546166]
[1743013875189,0.1190748,2016.3,2016.2,24.31446166]
[1743013878199,0.1190748,2016.3,2016.2,30.98446166]
[1743013878916,4.8e-06,2016.3,2016.2,33.98446166]
[1743013880710,4.8e-06,2016.3,2016.2,34.96814315]
[1743013887816,0.07,2016.9,2016.8,5.76304]
[1743013888030,0.07,2016.9,2016.8,22.9595066]
[1743013888500,0.07,2016.9,2016.8,37.4595066]
[1743013891535,0.07,2016.9,2016.8,42.02539036]
[1743013891938,0.07,2016.9,2016.8,45.02539036]
[1743013896011,0.07,2016.9,2016.8,41.8301839]
[1743013896540,0.07,2016.9,2016.8,46.0196185]
[1743013897434,1e-05,2016.9,2016.8,46.0196185]
[1743013898314,1e-05,2016.9,2016.8,41.8301839]
[1743013900338,1e-05,2016.9,2016.8,37.0611839]
[1743013900522,1e-05,2016.9,2016.8,41.8281839]
[1743013901542,1e-05,2016.9,2016.8,46.0176185]
[1743013902922,0.1978,2018.2,2017.8,4.95575]
[1743013903127,0.1978,2018.1,2017.8,5.451325]
[1743013903322,0.1190748,2018.3,2017.6,4.95634]
[1743013903323,0.1978,2017.9,2017.6,4.95634]
[1743013903947,0.1978,2017.9,2017.7,14.5]
[1743013905035,0.1978,2017.9,2017.6,4.95626]
[1743013905228,0.1978,2017.9,2017.6,4.95623]
[1743013905620,0.1978,2017.9,2017.6,9.91249]
[1743013905836,0.1978,2017.9,2017.6,4.95623]
[1743013906547,4.95569,2017.9,2017.5,19.4566]
[1743013906749,0.1978,2017.8,2017.5,4.9566]
[1743013907851,5.1537,2017.8,2017.5,4.9566]
[1743013908073,0.1978,2017.8,2017.5,9.9131]
[1743013908351,0.1978,2017.8,2017.5,4.9565]
[1743013909753,5.15373,2017.8,2017.5,4.9565]
[1743013910047,6.30567775,2017.8,2017.6,14.5]
[1743013912164,1.34974775,2017.8,2017.6,14.5]
[1743013912335,6.30564775,2017.8,2017.6,14.5]
[1743013915167,1.34974775,2017.8,2017.6,14.5]
[1743013915371,6.30572775,2017.8,2017.6,14.5]
[1743013915539,6.22327752,2017.7,2017.4,4.95683]
[1743013915876,0.1978,2017.6,2017.3,4.95707]
[1743013916025,0.1978,2017.6,2017.4,14.5]
[1743013916221,5.15426,2017.6,2017.3,4.95707]
[1743013916465,0.1978,2017.5,2017.2,4.95723]
[1743013916663,6.08882946,2017.5,2017.2,4.95723]
[1743013916869,6.08882946,2017.5,2017.2,19.45723]
[1743013917075,1.13216946,2017.5,2017.2,24.41445]
[1743013917279,0.1978,2017.5,2017.2,24.41445]
[1743013917570,0.1978,2017.5,2017.3,4.95707]
[1743013918144,0.1978,2017.7,2017.5,4.95662]
[1743013918549,0.1978,2017.7,2017.4,4.95686]
[1743013918746,5.15402,2017.7,2017.3,4.95709]
[1743013918947,0.815402,2017.6,2017.3,4.95709]
[1743013919785,5.771782,2017.6,2017.2,24.41461]
[1743013920494,5.771782,2017.6,2017.3,4.95711]
[1743013920790,0.815402,2017.6,2017.3,4.95711]
[1743013920969,0.815402,2017.6,2017.3,4.95701]
[1743013922049,5.771792,2017.6,2017.3,4.95701]
[1743013922256,1.0925892,2017.5,2017.2,19.45725]
[1743013922456,0.1978,2017.4,2017.2,19.45725]
[1743013922878,5.15475,2017.4,2017.0,6.12]
[1743013923078,5.15529,2017.2,2016.8,4.95826]
[1743013923474,0.1978,2017.2,2016.9,19.45793]
[1743013923672,0.1978,2017.4,2017.2,4.95731]
[1743013923903,0.1978,2017.4,2017.1,4.95761]
[1743013924062,0.1978,2017.4,2017.2,9.91459]
[1743013924362,0.1978,2017.4,2017.2,9.91446]
[1743013924557,0.1978,2017.4,2017.2,4.95721]
[1743013924764,0.1978,2017.4,2017.1,4.95761]
[1743013925455,0.1978,2017.4,2017.1,9.91512]
[1743013926059,0.1978,2017.4,2017.1,4.95751]
[1743013926260,5.15468,2017.4,2017.1,4.95751]
[1743013926671,4.95716,2017.3,2016.9,19.45808]
[1743013926874,5.15543,2017.1,2016.7,4.95857]
[1743013927087,0.1978,2017.1,2016.8,4.95827]
[1743013927292,0.1978,2017.1,2016.8,19.45827]
[1743013927491,5.15541,2017.1,2016.8,19.45827]
[1743013927663,0.1978,2017.1,2016.8,19.45827]
[1743013927863,0.1978,2017.1,2016.8,4.95827]
[1743013928091,0.1978,2017.1,2016.8,4.95821]
[1743013928293,6.58570746,2017.1,2016.7,4.95859]
[1743013928471,6.58570746,2017.1,2016.7,19.45841]
[1743013928675,0.1978,2017.1,2016.7,14.5]
[1743013928889,0.1978,2017.1,2016.8,4.95814]
[1743013929197,5.15543,2017.1,2016.7,19.4585]
[1743013929376,9.3448646,2017.1,2016.7,14.5]
[1743013929574,4.95793,2017.0,2016.7,14.5]
[1743013930195,9.3448646,2017.1,2016.7,19.45859]
[1743013930369,4.95818,2016.9,2016.7,14.5]
[1743013930564,4.95818,2016.9,2016.5,11.83356]
[1743013930770,5.15615,2016.8,2016.3,4.95956]
[1743013931098,5.89315846,2016.7,2016.4,14.5]
[1743013931260,5.15615,2016.8,2016.4,19.45931]
[1743013931470,5.15615,2016.8,2016.4,24.41851]
[1743013931676,5.15615,2016.8,2016.4,19.4592]
[1743013931887,4.95871,2016.7,2016.4,14.5]
[1743013932806,5.15615,2016.8,2016.4,19.45926]
[1743013933006,6.67996711,2016.8,2016.4,14.5]
[1743013933206,4.95861,2016.7,2016.4,14.5]
[1743013933702,6.67996711,2016.8,2016.4,14.5]
[1743013933871,6.67996711,2016.8,2016.4,19.45921]
[1743013934077,6.67996711,2016.8,2016.4,14.5]
[1743013934280,4.95867,2016.7,2016.4,14.5]
[1743013934611,6.67996711,2016.8,2016.4,19.4593]
[1743013934999,4.95869,2016.7,2016.4,14.5]
[1743013936311,9.91746,2016.7,2016.4,14.5]
[1743013936475,4.95892,2016.6,2016.4,14.5]
[1743013936679,10.73097577,2016.7,2016.4,14.5]
[1743013937979,10.73097577,2016.7,2016.4,19.4593]
[1743013938202,4.1894346,2016.7,2016.4,19.4593]
[1743013938405,6.26055709,2017.0,2016.6,4.95873]
[1743013938406,3.0,2016.9,2016.6,4.95873]
[1743013938614,3.0,2016.9,2016.6,9.91741]
[1743013938913,3.0,2016.9,2016.6,4.95868]
[1743013939089,4.32796611,2016.9,2016.7,19.45859]
[1743013939290,3.1978,2017.0,2016.7,19.45859]
[1743013939516,8.15569,2017.0,2016.7,19.45859]
[1743013940091,8.15569,2017.0,2016.7,14.5]
[1743013940481,13.11379,2017.0,2016.7,14.5]
[1743013940681,10.36261246,2017.0,2016.7,14.5]
[1743013940881,10.36261246,2017.0,2016.6,4.95867]
[1743013941412,10.36261246,2017.0,2016.6,19.45867]
[1743013941783,4.95814,2016.9,2016.6,14.5]
[1743013941980,7.95814,2016.9,2016.5,4.95902]
[1743013942195,4.1894346,2016.7,2016.4,4.95929]
[1743013942395,9.3459246,2016.7,2016.4,4.95929]
[1743013943296,14.3046646,2016.7,2016.3,4.9595]
[1743013943491,9.3459246,2016.7,2016.3,9.91892]
[1743013943905,4.95886,2016.6,2016.3,4.95942]
[1743013944491,5.15649,2016.7,2016.3,4.95941]
[1743013944814,0.1978,2016.7,2016.5,4.95906]
[1743013945014,17.3036146,2016.9,2016.5,4.95892]
[1743013945811,4.95836,2016.8,2016.5,4.95892]
[1743013946000,4.95836,2016.8,2016.4,4.9593]
[1743013946001,9.91687,2016.8,2016.4,4.95929]
[1743013946903,5.15665,2016.6,2016.3,4.95953]
[1743013947106,10.11565,2016.6,2016.2,5.71044]
[1743013947511,10.11565,2016.6,2016.2,20.21044]
[1743013947710,10.11561,2016.6,2016.2,20.21044]
[1743013947907,9.1486446,2016.5,2016.2,14.5]
[1743013948123,9.1486446,2016.5,2016.1,6.12]
[1743013948124,4.95941,2016.4,2016.1,6.12]
[1743013948627,4.95941,2016.4,2016.1,20.62]
[1743013948930,4.95941,2016.4,2016.1,11.08005]
[1743013949527,9.1486446,2016.5,2016.1,9.91997]
[1743013950035,4.95921,2016.5,2016.1,6.20501811]
[1743013950202,4.95921,2016.5,2016.2,4.95981]
[1743013950402,4.95921,2016.5,2016.1,6.20501811]
[1743013951099,5.15664,2016.6,2016.2,4.95974]
[1743013951299,0.1978,2016.6,2016.3,4.95948]
[1743013951524,3.0,2016.9,2016.6,4.95873]
[1743013951728,7.95811,2016.9,2016.6,4.95873]
[1743013952730,3.0,2016.9,2016.6,4.95871]
[1743013952936,7.95821,2016.9,2016.5,9.91802]
[1743013953231,7.95821,2016.9,2016.6,4.95879]
[1743013953807,12.91648,2016.9,2016.5,4.95896]
[1743013954124,7.95821,2016.9,2016.5,4.95894]
[1743013954527,12.91649,2016.9,2016.5,4.95894]
[1743013954725,4.95838,2016.8,2016.4,4.95933]
[1743013954925,5.15643,2016.7,2016.4,4.95933]
[1743013955437,9.3458646,2016.7,2016.3,4.95957]
[1743013955630,0.1978,2016.7,2016.4,4.95928]
[1743013955830,4.95839,2016.8,2016.5,4.95908]
[1743013956142,14.96064706,2016.9,2016.5,4.95908]
[1743013956143,15.15844706,2016.9,2016.5,4.95908]
[1743013956344,15.15844706,2016.9,2016.5,9.91808]
[1743013957008,15.15844706,2016.9,2016.4,0.8241]
[1743013957009,3.1978,2016.9,2016.6,9.91741]
[1743013957206,3.0,2016.9,2016.6,4.95868]
[1743013958345,7.95813,2016.9,2016.6,4.95868]
[1743013959138,7.95813,2016.9,2016.5,4.95906]
[1743013959343,12.1475646,2016.9,2016.5,19.45906]
[1743013959531,4.1894346,2016.7,2016.3,4.95956]
[1743013959736,9.1481046,2016.7,2016.3,4.95937]
[1743013959923,5.15616,2016.8,2016.4,4.95919]
[1743013960128,10.11467,2016.8,2016.4,4.95919]
[1743013960530,5.15616,2016.8,2016.4,4.95919]
[1743013960740,5.15616,2016.8,2016.5,4.95907]
[1743013961244,5.15616,2016.8,2016.4,4.95919]
[1743013961414,6.51417311,2016.8,2016.4,4.95919]
[1743013962451,4.9586,2016.7,2016.4,4.95919]
[1743013963248,4.9586,2016.7,2016.5,14.5]
[1743013963819,4.9586,2016.7,2016.4,4.95919]
[1743013964318,4.9586,2016.7,2016.4,19.45919]
[1743013964855,9.9174,2016.7,2016.4,14.5]
[1743013965026,4.95886,2016.6,2016.4,14.5]
[1743013965354,4.9586,2016.7,2016.3,9.91896]
[1743013965652,4.9586,2016.7,2016.4,4.95931]
[1743013965856,4.95887,2016.6,2016.3,19.45942]
[1743013966242,4.95887,2016.6,2016.3,4.95942]
[1743013966549,14.3056446,2016.5,2016.1,4.96003]
[1743013967152,9.3463346,2016.5,2016.1,4.95992]
[1743013967354,5.1569,2016.5,2016.2,4.95974]
[1743013967654,5.1569,2016.5,2016.2,4.95972]
[1743013967655,0.1978,2016.5,2016.2,4.95972]
[1743013968355,5.15689,2016.5,2016.2,4.95972]
[1743013968751,0.1978,2016.5,2016.2,4.95972]
[1743013969050,4.95885,2016.6,2016.2,9.91937]
[1743013969258,9.91788,2016.6,2016.2,4.95965]
[1743013969727,4.95909,2016.5,2016.2,4.95965]
[1743013970157,4.95885,2016.6,2016.2,9.91936]
[1743013970553,4.95885,2016.6,2016.2,9.91933]
[1743013970731,4.95885,2016.6,2016.3,4.95956]
[1743013971647,9.91791,2016.6,2016.2,4.95965]
[1743013971836,4.95885,2016.6,2016.2,4.95965]
[1743013973024,4.95918,2016.5,2016.2,4.95965]
[1743013974354,14.1078546,2016.5,2016.1,4.96004]
[1743013974554,4.95938,2016.4,2016.1,4.96004]
[1743013974759,5.15718,2016.4,2016.1,4.96004]
[1743013974961,5.15664,2016.6,2016.2,4.95967]
[1743013975256,5.15664,2016.6,2016.3,4.95955]
[1743013975962,5.15664,2016.6,2016.2,19.45982]
[1743013975963,4.95912,2016.5,2016.2,19.45982]
[1743013976331,5.15664,2016.6,2016.2,19.45965]
[1743013976577,9.1481146,2016.7,2016.3,5.76677]
[1743013977065,9.1481146,2016.7,2016.4,4.9592]
[1743013977265,4.95868,2016.7,2016.4,4.9592]
[1743013977677,4.95868,2016.7,2016.3,5.76677]
[1743013978073,9.1481146,2016.7,2016.3,5.76677]
[1743013978251,4.95885,2016.6,2016.2,19.45979]
[1743013978447,5.15696,2016.5,2016.2,19.45979]
[1743013979180,4.95916,2016.5,2016.2,19.45979]
[1743013979762,4.95893,2016.6,2016.2,19.45979]
[1743013979969,9.91794,2016.6,2016.2,4.95979]
[1743013980482,9.1491546,2016.3,2015.9,5.72973]
[1743013980665,9.1495846,2016.1,2015.8,6.12]
[1743013980977,9.1495846,2016.1,2015.7,5.73008]
[1743013981170,9.1495846,2016.1,2015.7,8.249216]
[1743013981569,9.1500046,2015.9,2015.6,4.96121]
[1743013981770,4.1894346,2015.9,2015.6,4.96121]
[1743013981975,4.1894346,2015.9,2015.5,19.46136]
[1743013982285,9.1506346,2015.7,2015.3,10.54618]
[1743013982482,9.3484346,2015.7,2015.3,0.8183]
[1743013982648,9.3484346,2015.7,2015.3,5.78023]
[1743013982852,14.3096846,2015.7,2015.3,5.78023]
[1743013983187,9.3484346,2015.7,2015.3,5.78017]
[1743013983350,4.3872346,2015.7,2015.3,1.892545]
[1743013983553,4.96081,2015.8,2015.5,4.9615]
[1743013983891,9.3478346,2015.9,2015.5,4.9615]
[1743013984048,0.1978,2015.9,2015.5,4.96139]
[1743013984252,0.1978,2015.9,2015.6,4.96129]
[1743013984654,9.72635,2016.0,2015.6,4.96116]
[1743013984882,4.766,2016.0,2015.7,5.71654]
[1743013985186,9.3473046,2016.1,2015.7,5.71641]
[1743013985384,3.0,2016.1,2015.8,4.96069]
[1743013985549,7.96019,2016.1,2015.7,5.71652]
[1743013985955,7.1894346,2016.1,2015.7,0.7555]
[1743013986156,4.96091,2015.8,2015.4,5.78145]
[1743013986358,10.1191,2015.9,2015.5,4.96136]
[1743013986557,5.15837,2015.9,2015.5,4.96136]
[1743013986865,4.96098,2015.8,2015.4,5.78146]
[1743013987076,14.1114046,2015.8,2015.4,5.78146]
[1743013987271,9.1504146,2015.8,2015.4,10.74309]
[1743013987586,4.1894346,2015.6,2015.2,11.84763]
[1743013987819,5.15952,2015.5,2015.1,9.92479]
[1743013988084,0.1978,2015.5,2015.2,4.96226]
[1743013988480,5.15947,2015.5,2015.1,4.96246]
[1743013988679,5.15947,2015.5,2015.1,9.92483]
[1743013988991,5.15947,2015.5,2015.2,4.96228]
[1743013989193,0.1978,2015.5,2015.2,4.96213]
[1743013989487,5.15936,2015.5,2015.2,4.96213]
[1743013989790,0.1978,2015.5,2015.2,9.92425]
[1743013990191,9.1508046,2015.6,2015.3,4.96202]
[1743013990689,4.1894346,2015.8,2015.5,4.96146]
[1743013990895,3.0,2015.8,2015.6,4.96117]
[1743013991386,3.0,2015.9,2015.6,4.96117]
[1743013991607,3.0,2015.9,2015.7,4.96083]
[1743013992388,3.0,2015.9,2015.6,5.72676]
[1743013992687,3.0,2015.9,2015.7,4.96095]
[1743013993089,3.0,2015.9,2015.6,4.96115]
[1743013993390,7.96065,2015.9,2015.5,4.9614]
[1743013993889,7.96065,2015.9,2015.5,9.92277]
[1743013994084,7.96065,2015.9,2015.5,4.96137]
[1743013994987,12.92142,2015.9,2015.5,4.96137]
[1743013995293,9.1507346,2015.6,2015.3,6.12]
[1743013995503,5.15942,2015.5,2015.3,6.12]
[1743013995892,5.15942,2015.5,2015.0,5.73335]
[1743013995893,4.96213,2015.3,2015.0,5.73335]
[1743013996090,9.1514446,2015.4,2015.0,5.73335]
[1743013997104,9.1514146,2015.4,2015.0,5.73335]
[1743013997405,9.1514146,2015.4,2015.0,10.69596]
[1743013997588,4.96198,2015.4,2015.0,10.69596]
[1743013997986,5.15937,2015.5,2015.1,9.92489]
[1743013998308,10.12109,2015.5,2015.1,4.96238]
[1743013999111,5.15937,2015.5,2015.1,4.96238]
[1743013999308,4.96132,2015.6,2015.3,4.96195]
[1743013999600,3.0,2015.6,2015.3,5.73696]
[1743014000776,5.15891,2015.7,2015.4,4.96177]
[1743014000777,3.0,2015.7,2015.4,4.96177]
[1743014001323,7.96114,2015.7,2015.4,4.96177]
[1743014001715,3.0,2015.7,2015.4,4.96179]
[1743014001874,3.0,2015.7,2015.3,5.73711]
[1743014002073,7.96119,2015.7,2015.3,10.69912]
[1743014002372,7.96119,2015.7,2015.4,4.96176]
[1743014003106,12.92239,2015.7,2015.3,7.303254]
[1743014003601,7.96119,2015.7,2015.3,7.303154]
[1743014003772,3.0,2015.7,2015.4,4.96171]
[1743014003979,3.0,2015.7,2015.5,4.96144]
[1743014004805,0.1978,2015.9,2015.6,4.96116]
[1743014004972,5.15789,2016.1,2015.7,4.96095]
[1743014005306,6.60650351,2016.1,2015.7,4.96095]
[1743014005507,4.96039,2016.0,2015.7,4.96095]
[1743014006009,5.15789,2016.1,2015.8,4.9608]
[1743014006903,4.96041,2016.0,2015.7,4.96095]
[1743014007106,5.15789,2016.1,2015.7,4.96095]
[1743014007304,3.0,2016.1,2015.8,4.96065]
[1743014007717,5.15739,2016.3,2015.9,4.96042]
[1743014007914,5.15739,2016.3,2016.0,4.96031]
[1743014008279,8.15739,2016.3,2016.0,4.96031]
[1743014008587,8.15739,2016.3,2015.9,5.78618]
[1743014009320,8.15739,2016.3,2015.9,10.74659]
[1743014009486,4.767,2016.4,2016.0,4.96028]
[1743014009992,3.0,2016.4,2016.1,4.9599]
[1743014010194,3.1978,2016.5,2015.9,2.0076392]
[1743014010392,4.1894346,2016.4,2015.9,2.0076392]
[1743014010594,4.1894346,2016.4,2015.9,0.8257]
[1743014010802,4.1894346,2016.4,2016.0,4.96022]
[1743014011113,9.1488646,2016.4,2016.0,4.96022]
[1743014011509,4.95961,2016.3,2016.0,4.96022]
[1743014011810,4.95994,2016.2,2015.8,4.96077]
[1743014012028,4.96022,2016.1,2015.7,6.856042]
[1743014012230,4.96022,2016.1,2015.7,6.855922]
[1743014012428,9.3470846,2016.2,2015.9,4.96053]
[1743014012789,9.3470846,2016.2,2015.8,10.52713515]
[1743014013187,9.1492846,2016.2,2015.9,4.96056]
[1743014014100,4.95985,2016.2,2015.9,4.96056]
[1743014015085,9.1492846,2016.2,2015.9,4.96056]
[1743014015281,4.1894346,2016.0,2015.6,4.96127]